Cogmind - Beta 15 @@@ ROGUE MODE // 2025.05.09 @ 14:35:22 Player: Okami Result: Destroyed by C-17 Slicer with Blade Saw Performance ------------- Evolutions (2) 1000 Regions Visited (3) 600 Robots Destroyed (38) 190 Value Destroyed (970) 970 Prototype IDs (3) 60 Alien Tech Used (0) 0 Bonus (0) 0 TOTAL SCORE: 2820 Bonus ------- None Cogmind --------- Core Integrity 0/550 Matter 223/300 Energy 160/160 System Corruption 0% Temperature Cool (35) Movement Flying (69) Ox1 Location -8/Materials Parts ------- > --- POWER (1) -------- Light Nuclear Core > --- PROPULSION (4) --- Surge Thruster Surge Thruster Surge Thruster > --- UTILITY (4) ------ Improved Signal Interpreter Hacking Suite > --- WEAPON (2) ------- Heavy Particle Gun Assault Rifle > --- INVENTORY (5) ---- Improved Ion Engine Beam Rifle Particle Gun Grenade Launcher Mini Grenade Launcher Peak State ------------ > --- POWER ------------ Light Nuclear Core > --- PROPULSION ------- Surge Thruster Surge Thruster Surge Thruster Surge Thruster > --- UTILITY ---------- Large Storage Unit Improved Signal Interpreter Hardened Medium Armor Plating Hacking Suite > --- WEAPON ----------- Particle Gun Heavy Particle Gun > --- INVENTORY -------- Improved Ion Engine Improved Heat Sink Propulsion Shielding Beam Rifle Particle Gun Light Cannon Grenade Launcher Mini Grenade Launcher [Rating: 32] Favorites ----------- Power Improved Ion Engine Engine Improved Ion Engine Power Core Light Nuclear Core Propulsion Compact Wheel Treads Light Treads Leg Aluminum Leg Wheel Compact Wheel Hover Unit Hover Unit Flight Unit Surge Thruster Utility Large Storage Unit Device ECM Suite Storage Large Storage Unit Processor Improved Signal Interpreter Hackware Hacking Suite Protection Hardened Medium Armor Plating Weapon Light Cannon Energy Gun Heavy Particle Gun Energy Cannon Beam Cannon Ballistic Gun Assault Rifle Ballistic Cannon Light Cannon Launcher Mini Grenade Launcher Build | -11 -10 -9 -8 ------- Run | Yrd Mat Mat Mat Slots Evolved 4 | . . 2 2 Power . | . . . . Propulsion 2 | . . 1 1 Utility 2 | . . 1 1 Weapon . | . . . . Parts Attached 48 | 7 5 5 31 Power 4 | 1 . 1 2 Engine 3 | 1 . 1 1 Core 1 | . . . 1 Reactor . | . . . . Propulsion 18 | 2 . 2 14 Treads 1 | . . . 1 Leg 4 | . . . 4 Wheel 5 | 2 . 1 2 Hover 1 | . . 1 . Flight 7 | . . . 7 Utility 10 | 1 2 2 5 Device 4 | . 1 1 2 Storage 2 | 1 1 . . Processor 1 | . . . 1 Hackware 1 | . . 1 . Protection 2 | . . . 2 Artifact . | . . . . Weapon 16 | 3 3 . 10 Energy Gun 4 | 1 . . 3 Energy Cannon 1 | . . . 1 Ballistic Gun 4 | 2 . . 2 Ballistic Cannon 4 | . 3 . 1 Launcher 3 | . . . 3 Special Weapon . | . . . . Impact Weapon . | . . . . Slashing Weapon . | . . . . Piercing Weapon . | . . . . Special Melee Weapon . | . . . . Unidentified Prototypes 1 | . . . 1 Parts Lost 21 | . 2 . 19 Power 2 | . . . 2 Propulsion 8 | . . . 8 Utility 4 | . . . 4 Weapon 7 | . 2 . 5 Highest Loss Streak 8 | . 2 . 8 To Critical Strikes . | . . . . Average Backups 9 | 1 7 11 10 Power 1 | . 1 2 1 Propulsion . | . 2 1 . Utility 2 | . 1 2 2 Weapon 5 | . 3 5 6 Tool/Special . | . . . . Unused Backups 9 | . 2 2 5 Power 5 | . 1 2 2 Propulsion 1 | . 1 . . Utility 1 | . . . 1 Weapon 2 | . . . 2 Tool/Special . | . . . . Average Slot Usage (%) 82 | . 98 99 68 Engine 10 | . 14 11 7 Leg 2 | . . . 5 Wheel 16 | . 28 32 4 Flight 1 | . . . 2 Device 8 | . 13 14 3 Storage 10 | . 14 11 8 Processor 2 | . . . 5 Hackware 6 | . . 7 9 Energy Cannon 2 | . . . 5 Ballistic Gun 4 | . 4 11 3 Ballistic Cannon 12 | . 23 11 7 Peak Build Rating 32 | 6 7 13 32 Average Rating 11 | 4 6 12 14 On Entrance 6 | . 6 7 13 Naked Turns . | . . . . Heaviest Build 43 | 14 33 35 43 Greatest Support 42 | 26 26 42 42 Greatest Overweight (x) 10 | . 1 . 10 Average Overweight (x) . | . . . 1 Largest Inventory Capacity 15 | 8 15 15 15 Average Capacity 13 | 5 11 15 14 Most Carried 13 | 2 9 13 13 Average Carried 9 | 1 7 11 10 Final Capacity 15 | 8 15 15 5 Final Carried 13 | 2 9 13 5 Class Distribution -------------------- 100% | Mutant Dominant Class ---------------- Mutant | -10/Materials Mutant | -9/Materials Mutant | -8/Materials Resources | -11 -10 -9 -8 ----------- Run | Yrd Mat Mat Mat Matter Collected 1376 | 158 171 307 740 Remotely . | . . . . Salvage Created 937 | . 163 58 716 Parts 65 | . 15 5 45 Haulers Intercepted . | . . . . Recyclers Shooed . | . . . . Parts Field Recycled . | . . . . Retrieved Matter . | . . . . Parts Self-Destructed . | . . . . Prevented . | . . . . Kills | -11 -10 -9 -8 ------- Run | Yrd Mat Mat Mat Combat Hostiles Destroyed 31 | . 9 2 20 Guns 8 | . 1 . 7 Cannons 19 | . 8 2 9 AOE 4 | . . . 4 Classes Destroyed 9 | . 3 1 5 Worker 3 | . 1 . 2 Builder 1 | . . . 1 Recycler 1 | . . . 1 Operator 1 | . . 1 . Watcher 1 | . . . 1 Swarmer 11 | . 6 . 5 Cutter 3 | . . . 3 Grunt 14 | . 3 2 9 Sentry 3 | . . . 3 Best Kill Streak 4 | . 3 2 4 Combat Bots Only 4 | . 3 2 4 Max Kills in Single Turn 2 | . 1 1 2 Gunslinging . | . . . . Exploded 2 | . . . 2 Melee . | . . . . Uniques/NPCs Destroyed . | . . . . Combat | -11 -10 -9 -8 -------- Run | Yrd Mat Mat Mat Hostile Shots Fired 253 | . 40 10 203 Missed 77 | . 17 3 57 Hits 176 | . 23 7 146 Melee 29 | . . . 29 Projectile 147 | . 23 7 117 AOE 5 | . . . 5 Critical Strikes 17 | . 1 . 16 Damage Taken 2506 | . 230 84 2192 Core 610 | . 27 26 557 Absorbed by Shields 126 | . . . 126 Core Remaining (%) 94 | 100 89 93 . Volleys Fired 133 | . 27 9 97 Largest 2 | . 2 2 2 Hottest 120 | . 60 50 120 Shots Fired 248 | . 53 18 177 Gun 91 | . 5 9 77 Cannon 151 | . 48 9 94 Launcher 6 | . . . 6 Special . | . . . . Kinetic 183 | . 53 18 112 Thermal 59 | . . . 59 Explosive 6 | . . . 6 Electromagnetic . | . . . . Robot Hit Streak 11 | . 8 5 11 Robot Miss Streak 7 | . 3 3 7 Penetration Max . | . . . . Secondary Targets . | . . . . Shots Hit Robots 142 | . 30 12 100 Core Hits 61 | . 11 4 46 Critical Kills . | . . . . Critical Parts Destroyed . | . . . . Critical Strikes 7 | . 1 . 6 Burn 1 | . . . 1 Blast 6 | . 1 . 5 Melee Attacks . | . . . . Impact . | . . . . Slashing . | . . . . Piercing . | . . . . Sneak Attacks . | . . . . Combat Hostiles . | . . . . Follow-up Attacks . | . . . . Damage Inflicted 2845 | . 553 191 2101 Guns 839 | . 23 54 762 Cannons 1521 | . 512 137 872 Explosions 412 | . . . 412 Melee . | . . . . Ramming 73 | . 18 . 55 Kinetic 1773 | . 535 191 1047 Thermal 587 | . . . 587 Explosive 412 | . . . 412 Electromagnetic . | . . . . Impact . | . . . . Slashing . | . . . . Piercing . | . . . . Highest Corruption . | . . . . Average Corruption . | . . . . Corruption Purged . | . . . . Corruption Blocked . | . . . . Overload Shots . | . . . . Overflow Damage 24 | . 3 . 21 Projectiles 13 | . . . 13 Explosions 8 | . . . 8 Melee 3 | . 3 . . Knockbacks 17 | . 10 2 5 Impact . | . . . . Kinetic 15 | . 9 2 4 Secondary 2 | . 1 . 1 Self-Inflicted Damage 95 | . 9 . 86 Shots 3 | . . . 3 Rammed 4 | . 1 . 3 Targets Rammed 5 | . 1 . 4 Kicked 1 | . . . 1 Crushed . | . . . . Highest Temperature 240 | . 45 . 240 Average Temperature 52 | . 27 . 57 Received Heat Transfer 688 | . 51 33 604 Siege Activations . | . . . . Martial Activations . | . . . . Shielding Activations . | . . . . Robots Disrupted . | . . . . Combat Hostiles . | . . . . Robots Corrupted 1 | . 1 . . Combat Hostiles . | . . . . Parts Fried 2 | . 2 . . Impact Corruptions 1 | . 1 . . Robots Melted . | . . . . Combat Hostiles . | . . . . Parts Melted 1 | . . . 1 Heat Transferred 1295 | . . . 1295 Parts Sabotaged . | . . . . Parts Stolen . | . . . . Parts Stripped . | . . . . Power Chain Reactions . | . . . . Alert | -11 -10 -9 -8 ------- Run | Yrd Mat Mat Mat Maximum Alert Level . | . . . . Low Security (%) 100 | 100 100 100 100 Level 1 . | . . . . Level 2 . | . . . . Level 3 . | . . . . Level 4 . | . . . . Level 5 . | . . . . High Security . | . . . . Max Security . | . . . . Peak Influence 115 | . 70 55 115 Initial . | . . . . Average 39 | . 19 9 61 Influence Increases 1043 | . 215 83 745 Destroy 0b10 Robot/C 620 | . 180 40 400 Destroy 0b10 Robot/NC 35 | . 5 5 25 Destroy Leader 122 | . 30 10 82 Successful Hack 17 | . . 13 4 Disable Machine 15 | . . . 15 Destroy Structure 39 | . . . 39 Lose Combat Pursuer 195 | . . 15 180 Influence Decreases 936 | . 215 83 638 Time Decay 752 | . 211 83 458 Lost Part 184 | . 4 . 180 Squads Dispatched 6 | . . 2 4 Investigation 1 | . . . 1 Extermination . | . . . . Reinforcement 5 | . . 2 3 Assault . | . . . . Garrison . | . . . . Intercept . | . . . . Searches Triggered . | . . . . Construction Impeded 1 | . . . 1 Haulers Reinforced . | . . . . Active Scanning Responses . | . . . . Cargo Convoy Interrupts . | . . . . Stealth | -11 -10 -9 -8 --------- Run | Yrd Mat Mat Mat Distress Signals 4 | . 1 1 2 Communications Jammed . | . . . . Distress Signals . | . . . . Times Spotted 65 | . 16 12 37 Peak Tracking Total 8 | . 3 3 8 Tactical Retreats 19 | . 3 1 15 Traps | -11 -10 -9 -8 ------- Run | Yrd Mat Mat Mat Traps Triggered . | . . . . Indirectly . | . . . . Trap Hack Attempts . | . . . . Triggered . | . . . . Disarmed . | . . . . Reprogrammed . | . . . . Reused . | . . . . Traps Extracted . | . . . . Installed . | . . . . Triggered . | . . . . Machines | -11 -10 -9 -8 ---------- Run | Yrd Mat Mat Mat Machines Disabled 1 | . . . 1 Max in Single Turn 1 | . . . 1 Machines Repaired . | . . . . Machines Dismantled . | . . . . Machines Sabotaged . | . . . . Overloaded Fab Kills . | . . . . Hacking | -11 -10 -9 -8 --------- Run | Yrd Mat Mat Mat Machines Accessed 7 | . 4 1 2 Terminals 6 | . 4 1 1 Fabricators . | . . . . Repair Stations . | . . . . Recycling Units . | . . . . Scanalyzers 1 | . . . 1 Garrison Access . | . . . . Total Hacks 23 | . 8 9 6 Successful 16 | . 4 6 6 Failed 7 | . 4 3 . Catastrophic . | . . . . Database Lockouts . | . . . . Manual 6 | . . 2 4 Terminals 20 | . 8 9 3 Fabricators . | . . . . Repair Stations . | . . . . Recycling Units . | . . . . Scanalyzers 3 | . . . 3 Garrison Access . | . . . . Terminal Hacks 13 | . 4 6 3 Record 6 | . 2 3 1 Prototype ID Bank 1 | . . . 1 Emergency Access Points 1 | . 1 . . Alert Level 2 | . 1 . 1 Dispatch Records 1 | . . 1 . Investigation Status 1 | . . 1 . Recall Investigation 1 | . . 1 . Fabricator Hacks . | . . . . Repair Station Hacks . | . . . . Recycling Unit Hacks . | . . . . Scanalyzer 3 | . . . 3 Insert Component 1 | . . . 1 Analyze 2 | . . . 2 Garrison Access Hacks . | . . . . Unauthorized Hacks . | . . . . Terminals . | . . . . Fabricators . | . . . . Repair Stations . | . . . . Recycling Units . | . . . . Scanalyzers . | . . . . Garrison Access . | . . . . Data Cores Recovered . | . . . . Used . | . . . . Hacking Detections 4 | . 1 1 2 Full Trace Events 2 | . 1 . 1 Feedback Events . | . . . . Feedback Blocked . | . . . . Robot Schematics Acquired . | . . . . Robots Built . | . . . . Authchips . | . . . . Time . | . . . . Total Robot Build Rating . | . . . . Part Schematics Acquired 1 | . . . 1 Parts Built . | . . . . Authchips . | . . . . Time . | . . . . Total Part Build Rating . | . . . . Parts Repaired . | . . . . Time . | . . . . Parts Recycled . | . . . . Recycled Matter . | . . . . Retrieved Matter . | . . . . Retrieved Components . | . . . . Parts Scanalyzed 1 | . . . 1 Part Schematics Acquired 1 | . . . 1 Parts Damaged . | . . . . Bothacking | -11 -10 -9 -8 ------------ Run | Yrd Mat Mat Mat Used RIF Installer . | . . . . Robots Hacked . | . . . . Non-combat . | . . . . Combat . | . . . . Robot Hacks Applied . | . . . . Relay Couplers Released . | . . . . Fabnet Peak Effective % . | . . . . Robots Rewired . | . . . . Allies Hacked . | . . . . Hacks Repelled . | . . . . Allies | -11 -10 -9 -8 -------- Run | Yrd Mat Mat Mat Total Allies . | . . . . Largest Group . | . . . . Highest-Rated Group . | . . . . Highest-Rated Ally . | . . . . Total Orders . | . . . . Ally Attacks . | . . . . Total Damage . | . . . . Kills . | . . . . Allies Corrupted . | . . . . Allies Melted . | . . . . Intel | -11 -10 -9 -8 ------- Run | Yrd Mat Mat Mat Active Infowar (turns) 1527 | . 682 412 433 Sensors 608 | . . 412 196 ECM 1035 | . 682 116 237 Robot Analysis Total . | . . . . Derelict Logs Recovered . | . . . . Drone Launches . | . . . . Drone Recoveries . | . . . . Exploration | -11 -10 -9 -8 ------------- Run | Yrd Mat Mat Mat Turns Passed 2531 | 66 704 412 1349 Spaces Moved 1550 | 59 622 323 546 Core 20 | 1 . . 19 Treads 75 | . . . 75 Legs 189 | . . . 189 Wheels 1225 | 58 622 323 222 Hover . | . . . . Flight 41 | . . . 41 Fastest Speed 50 | 50 90 93 66 Average Speed 124 | 88 96 93 179 Slowest Speed 850 | 90 105 93 850 Overloaded Moves . | . . . . Propulsion Burnouts . | . . . . Robots Hopped . | . . . . Potential Cave-ins . | . . . . Cave-ins Triggered . | . . . . Exploration Rate (%) 27 | 5 62 21 20 Regions Visited 3 Branch Regions . Pre-discovered Areas . | . . . . Known Exits Taken . | . . . . Unknown Exits Taken 3 | 1 1 1 . Scrap Searched . | . . . . Spaces Dug . | . . . . Terrain Destroyed 56 | . . . 56 Melee . | . . . . Projectile . | . . . . AOE 56 | . . . 56 Terrain Rammed . | . . . . Walls Destroyed . | . . . . Machines Disabled . | . . . . Actions | -11 -10 -9 -8 --------- Run | Yrd Mat Mat Mat Total 1893 | 69 673 416 735 Wait 89 | . 4 69 16 Move 1547 | 58 621 322 546 Hop . | . . . . Pick Up 35 | 3 9 8 15 Fast Attach 26 | 6 3 . 17 Attach 19 | . 2 2 15 Detach 2 | . 2 . . Swap 17 | 1 1 3 12 Drop 20 | 1 3 3 13 Fire 133 | . 27 9 97 Melee . | . . . . Ram 3 | . 1 . 2 Kick 1 | . . . 1 Crush 1 | . . . 1 Escape Stasis . | . . . . Rewire . | . . . . Trap . | . . . . Miscellaneous . | . . . . Route ------- -11/Scrapyard -10/Materials (discovered 2 exits: *Mat x2) -9/Materials -8/Materials History --------- Turn | Location | Event 26 | -11/Scrapyard | Discovered new exit (range 16) 67 | -11/Scrapyard | Entered Materials 310 | -10/Materials | Build established: Mutant 474 | -10/Materials | Discovered new exit (range 8) 696 | -10/Materials | Discovered new exit (range 3) 771 | -10/Materials | Entered another Materials area 771 | -9/Materials | Evolved 2 slots: Propulsion x1, Utility x1 1168 | -9/Materials | Discovered new exit (range 16) 1183 | -9/Materials | Entered another Materials area 1183 | -8/Materials | Evolved 2 slots: Propulsion x1, Utility x1 1347 | -8/Materials | Lost 8 parts (4n2u2w) 1895 | -8/Materials | Core integrity fell below 50% 1931 | -8/Materials | Lost 3 parts (2n1w) 2435 | -8/Materials | Core integrity fell below 20% 2532 | -8/Materials | Destroyed by C-17 Slicer with Blade Saw Last Messages --------------- 02516_ Dropped Particle Gun. 02516_ Dropped Propulsion Shielding. 02516_ R-06 Scavenger collects Blade Saw. 02517_ Dropped Lrg. Storage Unit. 02517_ ALERT: Suspicious intruders detected, dispatching Cutter reinforcements to area. 02520_ Acquired 22 matter. 02520_ R-06 Scavenger collects Imp. Heat Sink. 02523_ R-06 Scavenger collects Lrg. Storage Unit. 02524_ Knocked back. 02524_ K-01 Serf knocked back. 02524_ U-05 Engineer knocked back. 02525_ C-17 Slicer knocked back. 02525_ C-17 Slicer destroyed. 02525_ K-01 Serf collects debris. 02525_ Knocked back. 02525_ R-06 Scavenger knocked back. 02527_ Surge Thruster severed. 02530_ The unstable cave ceiling collapses. 02530_ Hrd. Medium Armor Plating severed. Map ----- +----------------------------------------------------+ | | | ?????????????????????????????????????????????????? | | ?????????????????????????????????????????????????? | | ?????????????????????????????????????????????????? | | ?????????????????????????????????????????????????? | | ?????????????????????????????????????????????????? | | ?????????????????????????????????????????????????? | | ?????????????????????????????????????????????????? | | ?????????????????????????????????????????????????? | | ??????????????????????????????????????????????#### | | ??????????????????????????????????????????????# | | ??????????????????????????????????????????????# "" | | ?????????????????????????????????###########??# "" | | ?????????????????????????????????# ! #??# "" | | ????????????####???##????????????# #### | | ????????????# ?? ???????????# # # | | ????????????# """ ???????????# """ """ # # | | ????????????# """"" ???????????# """ """ # + | | ???????#????# """"" ???????????# """ """ # #### | | ???????# ???# """"" ???????????# #[!# | | ???????# ??# """ ???????????# # [# ! | | ???????# ## ##?????????####+###### *# | | ??????## H # ###???????# ##### + "" | | ??##### # u### = #???????# # "" | | = %/ ra = ]#########[= # "" | | T = c@ [! % = ########### | | c ### ########?????????? | | ???#### # ### ##?# #????????????????? | | ??????###+#?####### ###??# #????????????????? | | ??????????????????######????# #????????????????? | | ????????????????????????????# #????????????????? | | ????????????????????????????# ###########??????? | | ????????????????????????????# ## #??????? | | ????????????????????????????# ##"S #??????? | | ????????????????????????????# ##""" #??????? | | ????????????????????????????# ## "" #??????? | | ????????????????????????????# ## #??????? | | ????????????????????????????# ## """ #??????? | | ????????????????????????????# ## """ #??????? | | ????????????????????????????# ## """ #??????? | | ????????????????????????????# ## #??????? | | ????????????????????????????# *######+####??????? | | ????????????????????????????# *#### ########? | | ????????????????????????????# !! #? | | ????????????????????????????# ! #? | | ????????????????????????????# % #? | | ????????????????????????????####+### % ###+##### | | ?????????????????????????????# ## ## | | ?????????????????????????????# ## %##"" | | ?????????????????????????????#""" ## ##"R* | +----------------------------------------------------+ Best States ------------- Heat Dissipation 31 Energy Generation 14 Energy Capacity 265 Matter Stores 300 Matter Capacity 300 Sight Range 16 Robot Scan Range 15 Terrain Scan Density 10 ECM Strength 1 Armor Coverage 225 Evasion (%) 55 Recoil Reduction 1 Offensive Hacking 10 Item Schematics ----------------- ECM Suite | -8/Materials | Scanalyzed Robot Schematics ------------------ None Fabricated ------------ Nothing Repaired ---------- Nothing Alien Tech Used ----------------- None Achievements -------------- None Challenges ------------ None Game ------ Seed FlakSurgeTerrabomb Manual? 0 Play Time 00:35:05 Cumulative 7.5 hours Start 2025.05.09 @ 13:56:01 End 2025.05.09 @ 14:35:22 Sessions 1 Manual Loads 0 Difficulty Rogue Special Mode None Game No. 7 Rogue 7 Adventurer 0 Explorer 0 Win Type - Total 0 Types 0/0/0/0/0/0/0/0/0/0 Lore% 1 Gallery% 11 Achievement% 10 Wizard Run 0 Options --------- Layout 0 ASCII 0 Keyboard 0 Movement Arrows Keybinds 0 Fullscreen 2 Font 24/Smallcaps Map View 76x50 Zoom Use 0% Tactical HUD 1 Map Filters NONE Filters NONE Steam 1 RUN: bd612029-53a5-4ae2-892f-160b1e569ecb